Cogmind - Beta 16.1 @@@ ROGUE MODE // 2026.04.08 @ 20:32:17 Player: microsand Result: Destroyed by ZQ-DHQ(R) with Subdweller Laser Performance ------------- Evolutions (0) 0 Regions Visited (3) 600 Robots Destroyed (25) 125 Value Destroyed (580) 580 Prototype IDs (1) 20 Alien Tech Used (0) 0 Bonus (0) 0 TOTAL SCORE: 1325 Bonus ------- None Cogmind --------- Core Integrity 0/250 Matter 14/300 Energy 100/100 System Corruption 1% Temperature Cool (6) Movement Core (350) Ox6 Location -10/Subcaves Parts ------- > --- POWER (1) -------- (None) > --- PROPULSION (2) --- (None) > --- UTILITY (2) ------ Small Storage Unit Sensor Drone Bay (20/20) > --- WEAPON (2) ------- (None) > --- INVENTORY (8) ---- Aluminum Leg Heat Sink Improved Terrain Scanner Seismic Detector Scrap Shield Flamer Peak State ------------ > --- POWER ------------ Ion Engine > --- PROPULSION ------- Light Treads Light Treads > --- UTILITY ---------- Small Storage Unit Sensor Drone Bay > --- WEAPON ----------- Heavy EM Pulse Gun Heavy EM Pulse Gun > --- INVENTORY -------- Aluminum Leg Heat Sink Improved Terrain Scanner Seismic Detector EM Pulse Gun Assault Rifle Light Assault Rifle Grenade Launcher [Rating: 17] Favorites ----------- Power Ion Engine Engine Ion Engine Propulsion Light Treads Treads Light Treads Utility Small Storage Unit Device Seismic Detector Storage Small Storage Unit Weapon Heavy EM Pulse Gun Energy Gun Heavy EM Pulse Gun Ballistic Gun Light Assault Rifle Launcher Grenade Launcher Build | -11 -10 -10 -10 ------- Run | Yrd Mat Min Sub Slots Evolved . | . . . . Power . | . . . . Propulsion . | . . . . Utility . | . . . . Weapon . | . . . . Parts Attached 13 | 7 3 1 2 Power 1 | 1 . . . Engine 1 | 1 . . . Core . | . . . . Reactor . | . . . . Propulsion 2 | 2 . . . Treads 2 | 2 . . . Leg . | . . . . Wheel . | . . . . Hover . | . . . . Flight . | . . . . Utility 3 | 1 1 1 . Device 2 | . 1 1 . Storage 1 | 1 . . . Processor . | . . . . Hackware . | . . . . Protection . | . . . . Artifact . | . . . . Weapon 7 | 3 2 . 2 Energy Gun 3 | 1 2 . . Energy Cannon . | . . . . Ballistic Gun 2 | 2 . . . Ballistic Cannon . | . . . . Launcher 2 | . . . 2 Special Weapon . | . . . . Impact Weapon . | . . . . Slashing Weapon . | . . . . Piercing Weapon . | . . . . Special Melee Weapon . | . . . . Unidentified Prototypes 1 | . . 1 . Parts Lost 8 | . . . 8 Power 1 | . . . 1 Propulsion 2 | . . . 2 Utility . | . . . . Weapon 5 | . . . 5 Highest Loss Streak 4 | . . . 4 To Critical Strikes . | . . . . Average Backups 6 | 1 5 7 6 Power . | . . . . Propulsion . | . . 1 1 Utility 2 | . 1 2 3 Weapon 2 | . 3 4 2 Tool/Special . | . . . . Unused Backups 8 | . . 3 5 Power 1 | . . 1 . Propulsion 2 | . . 1 1 Utility 4 | . . 1 3 Weapon 1 | . . . 1 Tool/Special . | . . . . Average Slot Usage (%) 96 | . 98 99 89 Engine 13 | . 14 14 13 Treads 25 | . 28 28 21 Device 13 | . 12 13 14 Storage 14 | . 14 14 14 Energy Gun 21 | . 24 28 9 Ballistic Gun 1 | . 3 . 1 Launcher 4 | . . . 14 Peak Build Rating 17 | 6 9 17 16 Average Rating 9 | 5 8 9 11 On Entrance 6 | . 6 9 10 Avg Prop Armor Cover (%) . | . . . . Naked Turns . | . . . . Heaviest Build 35 | 13 17 17 35 Greatest Support 40 | 40 40 40 40 Greatest Overweight (x) 1 | . . . 1 Average Overweight (x) . | . . . . Largest Inventory Capacity 8 | 8 8 8 8 Average Capacity 7 | 6 8 8 8 Most Carried 8 | 3 7 8 8 Average Carried 6 | 1 5 7 7 Final Capacity 8 | 8 8 8 8 Final Carried 8 | 3 7 8 7 Class Distribution -------------------- 100% | Mutant Dominant Class ---------------- Mutant | -10/Materials Mutant | -10/Mines Mutant | -10/Subcaves Resources | -11 -10 -10 -10 ----------- Run | Yrd Mat Min Sub Matter Collected 437 | 285 35 . 117 Remotely . | . . . . Salvage Created 740 | 162 149 203 226 Parts 40 | 8 7 13 12 Haulers Intercepted . | . . . . Recyclers Shooed 1 | 1 . . . Parts Field Recycled . | . . . . Retrieved Matter . | . . . . Parts Self-Destructed 8 | . . . 8 Prevented . | . . . . Parts Restored . | . . . . Kills | -11 -10 -10 -10 ------- Run | Yrd Mat Min Sub Combat Hostiles Destroyed 21 | . 3 8 10 Guns 12 | . 3 5 4 AOE 9 | . . 3 6 Classes Destroyed 5 | 2 1 1 1 Tunneler 3 | 3 . . . Recycler 1 | 1 . . . Swarmer 9 | . . 6 3 Grunt 5 | . 3 2 . Subdweller 7 | . . . 7 Best Kill Streak 3 | 3 3 3 3 Combat Bots Only 3 | . 3 3 3 Max Kills in Single Turn 2 | 1 1 2 2 Gunslinging 1 | . . 1 . Exploded 2 | . . 2 2 Melee . | . . . . Uniques/NPCs Destroyed . | . . . . Combat | -11 -10 -10 -10 -------- Run | Yrd Mat Min Sub Hostile Shots Fired 75 | . 1 21 53 Missed 24 | . . 7 17 Hits 51 | . 1 14 36 Projectile 51 | . 1 14 36 Damage Taken 1064 | . 12 163 889 Core 253 | . . 43 210 Absorbed by Shields . | . . . . Core Remaining (%) 100 | 100 . . . Volleys Fired 57 | 5 5 15 32 Largest 2 | 2 2 2 2 Hottest 90 | 40 90 90 90 Shots Fired 98 | 10 10 30 48 Gun 78 | 10 10 30 28 Cannon . | . . . . Launcher 20 | . . . 20 Special . | . . . . Kinetic 32 | 10 . . 22 Thermal . | . . . . Explosive 6 | . . . 6 Electromagnetic 60 | . 10 30 20 Robot Hit Streak 26 | 5 4 6 26 Robot Miss Streak 2 | 2 2 2 2 Penetration Max . | . . . . Secondary Targets 2 | . . 1 1 Max Gunslinging Chain 1 | . . 1 1 Shots Hit Robots 66 | 5 5 16 40 Core Hits 36 | 5 3 9 19 Critical Kills . | . . . . Critical Parts Destroyed . | . . . . Critical Strikes 4 | . . 2 2 Corrupt 4 | . . 2 2 Melee Attacks . | . . . . Impact . | . . . . Slashing . | . . . . Piercing . | . . . . Sneak Attacks . | . . . . Combat Hostiles . | . . . . Follow-up Attacks . | . . . . Damage Inflicted 1763 | 76 82 327 1278 Guns 618 | 76 82 209 251 Cannons . | . . . . Explosions 1145 | . . 118 1027 Melee . | . . . . Ramming . | . . . . Kinetic 852 | 76 . . 776 Thermal 191 | . . 118 73 Explosive 238 | . . . 238 Electromagnetic 482 | . 82 209 191 Impact . | . . . . Slashing . | . . . . Piercing . | . . . . Highest Corruption 1 | . 1 1 1 Average Corruption 1 | . 1 1 1 Corruption Purged . | . . . . Corruption Blocked . | . . . . Effects 10 | . 3 5 2 Message Errors 5 | . 2 3 . Matter Fused 1 | . . 1 . Heat Flow Errors 1 | . . 1 . Energy Discharges 2 | . 1 . 1 Data Loss (minor) 1 | . . . 1 Overload Shots . | . . . . Overflow Damage 37 | . . . 37 Projectiles . | . . . . Explosions 37 | . . . 37 Melee . | . . . . Knockbacks . | . . . . Impact . | . . . . Kinetic . | . . . . Secondary . | . . . . Self-Inflicted Damage 207 | . . 35 172 Shots 7 | . . 1 6 Rammed . | . . . . Targets Rammed . | . . . . Kicked . | . . . . Crushed . | . . . . Highest Temperature 341 | . 106 341 . Average Temperature 108 | . 47 125 . Received Heat Transfer 162 | . 6 18 138 Siege Activations . | . . . . Martial Activations . | . . . . Shielding Activations . | . . . . Robots Disrupted . | . . . . Combat Hostiles . | . . . . Robots Corrupted . | . . . . Combat Hostiles . | . . . . Parts Fried 1 | . . . 1 Impact Corruptions . | . . . . Robots Melted . | . . . . Combat Hostiles . | . . . . Parts Melted 5 | . . 3 2 Heat Transferred 250 | . . 150 100 Parts Sabotaged . | . . . . Parts Stolen . | . . . . Parts Stripped . | . . . . Power Chain Reactions 4 | . . 3 1 Alert | -11 -10 -10 -10 ------- Run | Yrd Mat Min Sub Maximum Alert Level . | . . . . Low Security (%) 100 | 100 100 100 . Level 1 . | . . . . Level 2 . | . . . . Level 3 . | . . . . Level 4 . | . . . . Level 5 . | . . . . High Security . | . . . . Max Security . | . . . . Peak Influence 161 | 10 85 161 . Initial 17 | . . 17 . Average 47 | . 19 83 . Influence Increases 384 | 20 90 204 70 Destroy 0b10 Robot/C 280 | . 60 160 60 Destroy 0b10 Robot/NC 20 | 20 . . . Destroy Leader 50 | . 10 30 10 Successful Hack 5 | . 5 . . Destroy Structure 14 | . . 14 . Lose Combat Pursuer 15 | . 15 . . Influence Decreases 384 | 20 45 234 85 Entered New Map 36 | . . 28 8 Time Decay 321 | 20 45 206 50 Lost Part 27 | . . . 27 Squads Dispatched 1 | . 1 . . Investigation 1 | . 1 . . Extermination . | . . . . Reinforcement . | . . . . Assault . | . . . . Garrison . | . . . . Intercept . | . . . . Searches Triggered . | . . . . Construction Impeded . | . . . . Haulers Reinforced . | . . . . Active Scanning Responses . | . . . . Cargo Convoy Interrupts . | . . . . Stealth | -11 -10 -10 -10 --------- Run | Yrd Mat Min Sub Distress Signals . | . . . . Communications Jammed . | . . . . Distress Signals . | . . . . Times Spotted 25 | . 3 8 14 Peak Tracking Total 4 | . 3 3 4 Tactical Retreats 1 | . 1 . . Traps | -11 -10 -10 -10 ------- Run | Yrd Mat Min Sub Traps Triggered . | . . . . Indirectly . | . . . . Trap Hack Attempts . | . . . . Triggered . | . . . . Disarmed . | . . . . Reprogrammed . | . . . . Reused . | . . . . Traps Extracted . | . . . . Installed . | . . . . Triggered . | . . . . Machines | -11 -10 -10 -10 ---------- Run | Yrd Mat Min Sub Machines Disabled . | . . . . Max in Single Turn . | . . . . Machines Repaired . | . . . . Machines Dismantled . | . . . . Machines Sabotaged . | . . . . Overloaded Fab Kills . | . . . . Hacking | -11 -10 -10 -10 --------- Run | Yrd Mat Min Sub Machines Accessed 2 | . 1 1 . Terminals 1 | . 1 . . Fabricators . | . . . . Repair Stations . | . . . . Recycling Units . | . . . . Scanalyzers . | . . . . Garrison Access . | . . . . Total Hacks 3 | . 2 1 . Successful 2 | . 1 1 . Failed 1 | . 1 . . Catastrophic 1 | . 1 . . Database Lockouts . | . . . . Manual 2 | . 2 . . Terminals 2 | . 2 . . Fabricators . | . . . . Repair Stations . | . . . . Recycling Units . | . . . . Scanalyzers . | . . . . Garrison Access . | . . . . Terminal Hacks 1 | . . 1 . Open Door 1 | . . 1 . Fabricator Hacks . | . . . . Repair Station Hacks . | . . . . Recycling Unit Hacks . | . . . . Scanalyzer . | . . . . Garrison Access Hacks . | . . . . Unauthorized Hacks 1 | . 1 . . Terminals 1 | . 1 . . Botnet 1 | . 1 . . Fabricators . | . . . . Repair Stations . | . . . . Recycling Units . | . . . . Scanalyzers . | . . . . Garrison Access . | . . . . Data Cores Recovered . | . . . . Used . | . . . . Hacking Detections 1 | . 1 . . Full Trace Events 1 | . 1 . . Feedback Events 1 | . 1 . . Corruption 1 | . 1 . . Feedback Blocked . | . . . . Robot Schematics Acquired . | . . . . Robots Built . | . . . . Authchips . | . . . . Time . | . . . . Total Robot Build Rating . | . . . . Part Schematics Acquired . | . . . . Parts Built . | . . . . Authchips . | . . . . Time . | . . . . Total Part Build Rating . | . . . . Part Studies Acquired . | . . . . Parts Repaired . | . . . . Time . | . . . . Parts Recycled . | . . . . Recycled Matter . | . . . . Retrieved Matter . | . . . . Retrieved Components . | . . . . Parts Scanalyzed . | . . . . Part Schematics Acquired . | . . . . Parts Damaged . | . . . . Bothacking | -11 -10 -10 -10 ------------ Run | Yrd Mat Min Sub Used RIF Installer . | . . . . Robots Hacked . | . . . . Non-combat . | . . . . Combat . | . . . . Robot Hacks Applied . | . . . . Relay Couplers Released . | . . . . Fabnet Peak Effective % . | . . . . Robots Rewired . | . . . . Allies Hacked . | . . . . Hacks Repelled . | . . . . Allies | -11 -10 -10 -10 -------- Run | Yrd Mat Min Sub Total Allies . | . . . . Largest Group . | . . . . Highest-Rated Group . | . . . . Highest-Rated Ally . | . . . . Total Orders 2 | . . . 2 ROAM 2 | . . . 2 Ally Attacks . | . . . . Total Damage . | . . . . Kills . | . . . . Allies Corrupted . | . . . . Allies Melted . | . . . . Intel | -11 -10 -10 -10 ------- Run | Yrd Mat Min Sub Active Infowar (turns) 826 | . 241 436 149 Seismic 826 | . 241 436 149 Robot Analysis Total . | . . . . Derelict Logs Recovered 2 | . . 2 . Drone Launches 7 | . . . 7 Drone Recoveries 7 | . . . 7 Exploration | -11 -10 -10 -10 ------------- Run | Yrd Mat Min Sub Turns Passed 1186 | 170 267 439 310 Spaces Moved 577 | 93 144 234 106 Core 9 | 9 . . . Treads 568 | 84 144 234 106 Legs . | . . . . Wheels . | . . . . Hover . | . . . . Flight . | . . . . Fastest Speed 50 | 50 160 160 160 Average Speed 164 | 149 160 160 193 Slowest Speed 240 | 160 160 160 240 Overloaded Moves . | . . . . Propulsion Burnouts . | . . . . Robots Hopped . | . . . . Potential Cave-ins . | . . . . Cave-ins Triggered . | . . . . Exploration Rate (%) 20 | 6 18 36 23 Regions Visited 3 Branch Regions 2 Pre-discovered Areas 1 | . . 1 . Known Exits Taken . | . . . . Unknown Exits Taken 3 | 1 1 1 . Scrap Searched 4 | . . . 4 Spaces Dug . | . . . . Terrain Destroyed 158 | . . 14 144 Melee . | . . . . Projectile . | . . . . AOE 158 | . . 14 144 Terrain Rammed . | . . . . Walls Destroyed . | . . . . Machines Disabled . | . . . . Actions | -11 -10 -10 -10 --------- Run | Yrd Mat Min Sub Total 720 | 115 170 271 164 Wait 40 | 2 14 10 14 Move 574 | 92 143 233 106 Hop . | . . . . Pick Up 23 | 9 5 6 3 Fast Attach . | . . . . Attach 12 | 6 1 1 4 Detach . | . . . . Swap 7 | 1 2 1 3 Drop 7 | . . 5 2 Fire 57 | 5 5 15 32 Melee . | . . . . Ram . | . . . . Kick . | . . . . Crush . | . . . . Escape Stasis . | . . . . Rewire . | . . . . Trap . | . . . . Miscellaneous . | . . . . Route ------- -11/Scrapyard -10/Materials -10/Mines -10/Subcaves (discovered 1 exit: [*Mat]) History --------- Turn | Location | Event 3 | -11/Scrapyard | Discovered new exit (range 15) 171 | -11/Scrapyard | Entered Materials 313 | -10/Materials | Build established: Mutant 405 | -10/Materials | Discovered new exit (range 8) 438 | -10/Materials | Entered Mines 680 | -10/Mines | Learned Materials stockpile data 701 | -10/Mines | Found the Drone Emporium 719 | -10/Mines | Found Prototype Device 727 | -10/Mines | Identified Sensor Drone Bay 847 | -10/Mines | Learned location of Storage (-9) 868 | -10/Mines | Discovered new exit (range 6) 877 | -10/Mines | Entered Subcaves 974 | -10/Subcaves | Core integrity fell below 50% 1019 | -10/Subcaves | Lost 3 parts (3w) 1040 | -10/Subcaves | Core integrity fell below 20% 1083 | -10/Subcaves | Discovered new exit (range 54) 1168 | -10/Subcaves | Ambushed by Subdweller buried in earth 1172 | -10/Subcaves | Ambushed by Subdweller buried in earth 1183 | -10/Subcaves | Ambushed by Subdweller buried in earth 1187 | -10/Subcaves | Destroyed by ZQ-DHQ(R) with Subdweller Laser Last Messages --------------- 01089_ The unstable cave ceiling collapses. 01099_ Subatomizers dissect the Sub. Monowheel. 01101_ Acquired 7 matter. 01117_ The unstable cave ceiling collapses. 01139_ Sensor Drone retrieved by Sensor Drone Bay (no repairs). 01168_ Ion Engine destroyed. [Achievement: Do Not Disturb] 01169_ FZ-OVS(R): "ARGHSUB!" 01170_ Lgt. Treads destroyed. 01170_ Destroyed Lgt. Treads. 01173_ I8-V70(R): "ARGHSUB!" 01174_ Grenade Launcher destroyed. 01175_ The unstable cave ceiling collapses. 01177_ FZ-OVS(R) destroyed. 01183_ I8-V70(R) destroyed. 01184_ PA-345(R): "ARGHSUB!" 01186_ LT-QUM(R): "ARGHSUB!" 01186_ The unstable cave ceiling collapses. 01186_ Sub. Shrapnel Launcher destroyed. Map ----- +----------------------------------------------------+ | ?###??##" "###??????????????????????????????? | | ?# ### " ???????????????????????????????? | | ## ? ????????????????????????????????? | | ## #### ?????????###?????????????????????? | | ## #????????# ##????????????????????? | | ##???????# #????????????????????? | | #? #??????# #????????????????????? | | # ##### #?????# < #????????????????????? | | ## # ##???## ##???????????????????? | | ?# ##### #???????????????????? | | ?# ### # # ##??????????????????? | | ?###?### #??# "; ##????????????????? | | ???????# ##?#R " #####????????????? | | ???????# ## #?# ; R #???????????? | | ????? ?###### ### ; #???????????? | | ???? ?????## R #???????????? | | ???? #????## ##; #???????????? | | ???? ##???####?# # &R #???????????? | | ???? ###????## ##??????????? | | ????? ????# #??????????? | | ??????? #???# #???????????? | | ??????????# #### ????????????? | | ??????????# #?????????????? | | ??????????#### ##?????????????? | | ??????????##### ##?????????????? | | ?????????## ## ## #;;@ #?????????????? | | ?????????# #####;;; ;##?????????????? | | ?????????# ##??##; ;##??????????????? | | ?????????# ##?## ;;; #??????????????? | | ?????????# ### #####??????????????? | | ?????????### #??????????????????? | | ???????????### #??????????????????? | | ?????????????### ####??????????????????? | | ???????????????## ##?#???????????????????? | | ????????????????## ## ##??????????????????? | | ?????????????????## #??????????????????? | | ?????????????????## #??????????????????? | | ????????????????## ### #??????????????????? | | ????????????????# ##?# #??????????????????? | | ?????????###????# #?###??????????????????? | | ??# ### ##### ## ##?????????????????? | | ?? ####??????????????? | | ?? #??????????????? | | ?? #### ## #??????????????? | | ?????????####### ##??????????????? | | ?????????# ##???????????????? | | ?????????# ## ##????????????????? | | ?????????# "## ####?????????????????? | | ?????????### # ####????????????????????? | | ???????????# # #?###""##???????????????? | +----------------------------------------------------+ Best States ------------- Heat Dissipation 25 Energy Generation 10 Energy Capacity 250 Matter Stores 300 Matter Capacity 300 Sight Range 16 Terrain Scan Density 10 Evasion (%) 40 Recoil Reduction 2 Item Schematics ----------------- None Robot Schematics ------------------ None Fabricated ------------ Nothing Repaired ---------- Nothing Studied --------- None Alien Tech Used ----------------- None Achievements -------------- Do Not Disturb Challenges ------------ None Game ------ Seed ConcussiveAlloyCape Manual? 0 Play Time 00:11:47 Cumulative 27.7 hours Start 2026.04.08 @ 20:02:04 End 2026.04.08 @ 20:32:17 Sessions 1 Manual Loads 0 Difficulty Rogue Special Mode None Game No. 74 Rogue 74 Adventurer 0 Explorer 0 Win Type - Total 1 Types 1/0/0/0/0/0/0/0/0/0 Lore% 37 Gallery% 29 Achievement% 24 Wizard Run 0 Options --------- Layout 1 ASCII 0 Keyboard 0 Movement Numpad Keybinds 0 Fullscreen 2 Font 24/Terminus Map View 50x35 Zoom Use 0% Tactical HUD 1 Map Filters NONE Filters NONE Steam 1 RUN: 79b7a121-a104-4dcf-b269-1462117a2a5c